[Event "Schack-SM 2024: Mastarklassen-elit"]
[Site "Fortnox Arena, Hejaregatan 5, Vaxjo, Sweden"]
[Date "2024.07.01"]
[Round "3.4"]
[White "Lundin, Jan"]
[Black "Olsson, William"]
[Result "0-1"]
[TimeControl "90 minutes for 40 moves + 30 minutes for the rest of the game + 30 seconds per move from move one."]
[WhiteTitle "FM"]
[BlackTitle "IM"]
[WhiteElo "2246"]
[BlackElo "2363"]

1. e4 {[%clk 01:30:32]} {[%emt 00:00:21]} c5 {[%clk 01:30:43]} {[%emt
00:00:17]} 2. Nc3 {[%clk 01:30:54]} {[%emt 00:00:09]} Nc6 {[%clk 01:31:07]}
{[%emt 00:00:05]} 3. g3 {[%clk 01:31:18]} {[%emt 00:00:06]} g6 {[%clk
01:31:32]} {[%emt 00:00:06]} 4. Bg2 {[%clk 01:31:35]} {[%emt 00:00:13]} Bg7
{[%clk 01:31:58]} {[%emt 00:00:03]} 5. d3 {[%clk 01:31:56]} {[%emt 00:00:10]}
d6 {[%clk 01:32:19]} {[%emt 00:00:09]} 6. f4 {[%clk 01:32:04]} {[%emt
00:00:22]} e6 {[%clk 01:32:16]} {[%emt 00:00:33]} 7. Nf3 {[%clk 01:32:24]}
{[%emt 00:00:09]} Nge7 {[%clk 01:32:38]} {[%emt 00:00:09]} 8. O-O {[%clk
01:32:46]} {[%emt 00:00:07]} O-O {[%clk 01:32:36]} {[%emt 00:00:32]} 9. Rb1
{[%clk 01:33:01]} {[%emt 00:00:15]} Rb8 {[%clk 01:32:41]} {[%emt 00:00:26]} 10.
Bd2 {[%clk 01:33:10]} {[%emt 00:00:20]} b5 {[%clk 01:33:01]} {[%emt 00:00:11]}
11. a3 {[%clk 01:33:31]} {[%emt 00:00:09]} b4 {[%clk 01:33:27]} {[%emt
00:00:05]} 12. axb4 {[%clk 01:31:26]} {[%emt 00:02:34]} cxb4 {[%clk 01:33:52]}
{[%emt 00:00:06]} 13. Na4 {[%clk 01:27:36]} {[%emt 00:04:18]} Ba6 {[%clk
01:28:15]} {[%emt 00:06:08]} 14. Be3 {[%clk 01:25:38]} {[%emt 00:02:28]} Bb5
{[%clk 01:21:12]} {[%emt 00:07:33]} 15. c4 {[%clk 01:14:34]} {[%emt 00:11:34]}
bxc3 {[%clk 01:18:41]} {[%emt 00:03:01]} 16. Nxc3 {[%clk 01:14:38]} {[%emt
00:00:26]} Ba6 {[%clk 01:16:42]} {[%emt 00:02:30]} 17. Rf2 {[%clk 01:08:36]}
{[%emt 00:06:31]} Rb7 {[%clk 01:09:14]} {[%emt 00:07:58]} 18. g4 {[%clk
00:47:20]} {[%emt 00:21:45]} Qb8 {[%clk 01:03:57]} {[%emt 00:05:47]} 19. d4
{[%clk 00:44:29]} {[%emt 00:03:21]} Nb4 {[%clk 01:01:30]} {[%emt 00:02:58]} 20.
Ne1 {[%clk 00:38:40]} {[%emt 00:06:18]} e5 {[%clk 00:54:30]} {[%emt 00:07:31]}
21. dxe5 {[%clk 00:24:09]} {[%emt 00:15:00]} dxe5 {[%clk 00:54:47]} {[%emt
00:00:12]} 22. f5 {[%clk 00:24:05]} {[%emt 00:00:36]} Rd8 {[%clk 00:49:52]}
{[%emt 00:05:25]} 23. Rd2 {[%clk 00:22:09]} {[%emt 00:02:26]} Rxd2 {[%clk
00:49:29]} {[%emt 00:00:52]} 24. Qxd2 {[%clk 00:22:35]} {[%emt 00:00:04]} Nec6
{[%clk 00:49:18]} {[%emt 00:00:41]} 25. g5 {[%clk 00:16:18]} {[%emt 00:06:47]}
Bc4 {[%clk 00:47:23]} {[%emt 00:02:25]} 26. Nd5 {[%clk 00:13:43]} {[%emt
00:03:04]} a5 {[%clk 00:40:36]} {[%emt 00:07:18]} 27. Rc1 {[%clk 00:11:33]}
{[%emt 00:02:40]} Bb5 {[%clk 00:39:52]} {[%emt 00:01:13]} 28. Bc5 {[%clk
00:08:43]} {[%emt 00:03:20]} Ba6 {[%clk 00:26:09]} {[%emt 00:14:14]} 29. Nf6+
{[%clk 00:07:36]} {[%emt 00:01:37]} Kh8 {[%clk 00:26:23]} {[%emt 00:00:15]} 30.
Qf2 {[%clk 00:06:44]} {[%emt 00:01:23]} Qd8 {[%clk 00:23:17]} {[%emt 00:03:35]}
31. Qh4 {[%clk 00:04:05]} {[%emt 00:03:11]} h6 {[%clk 00:21:21]} {[%emt
00:02:33]} 32. Ng4 {[%clk 00:02:49]} {[%emt 00:01:38]} h5 {[%clk 00:20:42]}
{[%emt 00:01:09]} 33. Nf6 {[%clk 00:00:54]} {[%emt 00:02:26]} Nd4 {[%clk
00:18:39]} {[%emt 00:02:33]} 34. Nxh5 {[%clk 00:00:37]} {[%emt 00:00:47]} gxh5
{[%clk 00:18:50]} {[%emt 00:00:17]} 35. Qxh5+ {[%clk 00:01:03]} {[%emt
00:00:05]} Kg8 {[%clk 00:19:14]} {[%emt 00:00:06]} 36. g6 {[%clk 00:01:08]}
{[%emt 00:00:27]} fxg6 {[%clk 00:19:32]} {[%emt 00:00:11]} 37. fxg6 {[%clk
00:01:32]} {[%emt 00:00:06]} Bf6 {[%clk 00:18:46]} {[%emt 00:01:16]} 38. Bh3
{[%clk 00:01:31]} {[%emt 00:00:29]} Be2 {[%clk 00:18:58]} {[%emt 00:00:20]} 39.
Bg4 {[%clk 00:01:08]} {[%emt 00:00:53]} Bxg4 {[%clk 00:18:40]} {[%emt
00:00:47]} 40. Qxg4 {[%clk 00:01:35]} {[%emt 00:00:03]} Qd7 {[%clk 00:17:14]}
{[%emt 00:01:56]} 41. Qh5 {[%clk 00:27:21]} {[%emt 00:04:45]} Rc7 {[%clk
00:45:50]} {[%emt 00:01:55]} 42. Rc3 {[%clk 00:22:26]} {[%emt 00:05:24]} Ne6
{[%clk 00:45:48]} {[%emt 00:00:31]} 43. Qf5 {[%clk 00:19:53]} {[%emt 00:03:04]}
Nxc5 {[%clk 00:45:17]} {[%emt 00:01:01]} 44. Qxf6 {[%clk 00:19:12]} {[%emt
00:01:11]} Nxe4 {[%clk 00:45:41]} {[%emt 00:00:06]} 45. Qf7+ {[%clk 00:15:56]}
{[%emt 00:03:47]} Qxf7 {[%clk 00:45:59]} {[%emt 00:00:11]} 46. gxf7+ {[%clk
00:16:21]} {[%emt 00:00:05]} Rxf7 {[%clk 00:46:25]} {[%emt 00:00:04]} 47. Re3
{[%clk 00:16:33]} {[%emt 00:00:18]} Nd6 {[%clk 00:41:14]} {[%emt 00:05:42]} 48.
Rxe5 {[%clk 00:16:26]} {[%emt 00:00:39]} Nc4 {[%clk 00:41:36]} {[%emt
00:00:08]} 49. Rc5 {[%clk 00:16:04]} {[%emt 00:00:51]} Ne3 {[%clk 00:41:54]}
{[%emt 00:00:12]} 50. h4 {[%clk 00:14:19]} {[%emt 00:02:16]} Rf1+ {[%clk
00:42:03]} {[%emt 00:00:20]} 51. Kh2 {[%clk 00:14:44]} {[%emt 00:00:04]} Rxe1
{[%clk 00:42:26]} {[%emt 00:00:08]} 52. Rxa5 {[%clk 00:15:08]} {[%emt
00:00:06]} Re2+ {[%clk 00:41:55]} {[%emt 00:01:01]} 53. Kg3 {[%clk 00:15:24]}
{[%emt 00:00:13]} Rxb2 {[%clk 00:42:21]} {[%emt 00:00:04]} 54. Ra7 {[%clk
00:15:16]} {[%emt 00:00:38]} Nbd5 {[%clk 00:42:29]} {[%emt 00:00:22]} 55. h5
{[%clk 00:15:15]} {[%emt 00:00:30]} Rg2+ {[%clk 00:42:32]} {[%emt 00:00:28]} 56.
Kf3 {[%clk 00:15:27]} {[%emt 00:00:18]} Rh2 {[%clk 00:42:57]} {[%emt 00:00:04]}
57. Ke4 {[%clk 00:15:23]} {[%emt 00:00:34]} Rh4+ {[%clk 00:42:55]} {[%emt
00:00:33]} 58. Kf3 {[%clk 00:15:44]} {[%emt 00:00:07]} Nf5 {[%clk 00:42:03]}
{[%emt 00:01:17]} 59. Ra5 {[%clk 00:15:26]} {[%emt 00:00:55]} Nde7 {[%clk
00:42:27]} {[%emt 00:00:07]} 60. Ra6 {[%clk 00:15:37]} {[%emt 00:00:18]} Kf7
{[%clk 00:42:07]} {[%emt 00:00:51]} 61. h6 {[%clk 00:15:42]} {[%emt 00:00:25]}
Nxh6 {[%clk 00:42:31]} {[%emt 00:00:06]} 62. Kg3 {[%clk 00:16:00]} {[%emt
00:00:11]} Nhf5+ {[%clk 00:42:22]} {[%emt 00:00:38]} 63. Kf3 {[%clk 00:16:24]}
{[%emt 00:00:08]} Nd5 {[%clk 00:42:15]} {[%emt 00:00:36]} 64. Kf2 {[%clk
00:16:30]} {[%emt 00:00:24]} Rh3 {[%clk 00:42:29]} {[%emt 00:00:16]} 65. Kg2
{[%clk 00:16:45]} {[%emt 00:00:16]} Nf4+ {[%clk 00:42:43]} {[%emt 00:00:15]} 66.
Kf2 {[%clk 00:17:10]} {[%emt 00:00:06]} Ne6 {[%clk 00:41:33]} {[%emt 00:01:40]}
67. Kg2 {[%clk 00:17:24]} {[%emt 00:00:15]} Rb3 {[%clk 00:41:40]} {[%emt
00:00:23]} 68. Kf2 {[%clk 00:17:27]} {[%emt 00:00:29]} Kf6 {[%clk 00:41:59]}
{[%emt 00:00:10]} 69. Ke2 {[%clk 00:17:42]} {[%emt 00:00:15]} Ke5 {[%clk
00:42:18]} {[%emt 00:00:12]} 70. Kf2 {[%clk 00:17:46]} {[%emt 00:00:25]} Ned4
{[%clk 00:42:40]} {[%emt 00:00:08]} 71. Ra2 {[%clk 00:17:50]} {[%emt 00:00:27]}
Kf4 {[%clk 00:41:04]} {[%emt 00:02:05]} 72. Kg2 {[%clk 00:16:43]} {[%emt
00:01:37]} Ne3+ {[%clk 00:38:56]} {[%emt 00:02:38]} 73. Kf2 {[%clk 00:16:43]}
{[%emt 00:00:30]} Ng4+ {[%clk 00:39:14]} {[%emt 00:00:12]} 74. Kg2 {[%clk
00:16:58]} {[%emt 00:00:16]} Rg3+ {[%clk 00:39:24]} {[%emt 00:00:19]} 75. Kh1
{[%clk 00:16:47]} {[%emt 00:00:41]} Rh3+ {[%clk 00:39:48]} {[%emt 00:00:06]} 76.
Kg1 {[%clk 00:17:04]} {[%emt 00:00:12]} Nf3+ {[%clk 00:40:02]} {[%emt
00:00:16]} 77. Kg2 {[%clk 00:16:58]} {[%emt 00:00:36]} Rh2+ {[%clk 00:40:29]}
{[%emt 00:00:04]} 78. Kf1 {[%clk 00:17:24]} {[%emt 00:00:05]} Ne3# {[%clk
00:40:56]} {[%emt 00:00:02]} 0-1

[Event "Schack-SM 2024: Mastarklassen-elit"]
[Site "Fortnox Arena, Hejaregatan 5, Vaxjo, Sweden"]
[Date "2024.07.01"]
[Round "3.5"]
[White "Arman, Deniz"]
[Black "Carlsson, Ludvig"]
[Result "1/2-1/2"]
[TimeControl "90 minutes for 40 moves + 30 minutes for the rest of the game + 30 seconds per move from move one."]
[WhiteTitle "FM"]
[BlackTitle "IM"]
[WhiteElo "2343"]
[BlackElo "2335"]

1. e4 {[%clk 01:29:21]} {[%emt 00:01:36]} e5 {[%clk 01:30:50]} {[%emt
00:00:14]} 2. Nf3 {[%clk 01:29:33]} {[%emt 00:00:18]} Nc6 {[%clk 01:31:07]}
{[%emt 00:00:13]} 3. Bb5 {[%clk 01:29:50]} {[%emt 00:00:12]} Nf6 {[%clk
01:31:26]} {[%emt 00:00:10]} 4. O-O {[%clk 01:26:37]} {[%emt 00:03:43]} Nxe4
{[%clk 01:31:42]} {[%emt 00:00:15]} 5. d4 {[%clk 01:25:46]} {[%emt 00:01:21]}
Nd6 {[%clk 01:32:00]} {[%emt 00:00:12]} 6. dxe5 {[%clk 01:26:00]} {[%emt
00:00:17]} Nxb5 {[%clk 01:32:19]} {[%emt 00:00:10]} 7. a4 {[%clk 01:26:22]}
{[%emt 00:00:09]} Nbd4 {[%clk 01:30:38]} {[%emt 00:02:10]} 8. Nxd4 {[%clk
01:24:21]} {[%emt 00:02:31]} d5 {[%clk 01:31:01]} {[%emt 00:00:07]} 9. exd6
{[%clk 00:50:39]} {[%emt 00:34:12]} Nxd4 {[%clk 01:31:00]} {[%emt 00:00:31]} 10.
Qxd4 {[%clk 00:51:04]} {[%emt 00:00:04]} Qxd6 {[%clk 01:31:22]} {[%emt
00:00:08]} 11. Qe4+ {[%clk 00:51:28]} {[%emt 00:00:06]} Qe6 {[%clk 01:31:41]}
{[%emt 00:00:12]} 12. Qd4 {[%clk 00:51:37]} {[%emt 00:00:22]} Qd6 {[%clk
01:32:03]} {[%emt 00:00:07]} 13. Qe4+ {[%clk 00:52:02]} {[%emt 00:00:06]} Qe6
{[%clk 01:32:24]} {[%emt 00:00:08]} 14. Qd4 {[%clk 00:52:22]} {[%emt 00:00:10]}
Qd6 {[%clk 01:32:44]} {[%emt 00:00:10]} 15. Qe4+ {[%clk 00:52:21]} {[%emt
00:00:29]} Qe6 {[%clk 01:33:08]} {[%emt 00:00:07]} 16. Qd4 {[%clk 00:51:58]}
1/2-1/2

[Event "Schack-SM 2024: Mastarklassen-elit"]
[Site "Fortnox Arena, Hejaregatan 5, Vaxjo, Sweden"]
[Date "2024.07.01"]
[Round "3.1"]
[White "Cederstam, Carl"]
[Black "Crevatin, Leo"]
[Result "0-1"]
[TimeControl "90 minutes for 40 moves + 30 minutes for the rest of the game + 30 seconds per move from move one."]
[WhiteTitle "FM"]
[BlackTitle "FM"]
[WhiteElo "2278"]
[BlackElo "2235"]

1. d4 {[%clk 01:30:16]} {[%emt 00:00:36]} d5 {[%clk 01:30:44]} {[%emt
00:00:18]} 2. c4 {[%clk 01:30:34]} {[%emt 00:00:12]} e6 {[%clk 01:31:11]}
{[%emt 00:00:03]} 3. Nf3 {[%clk 01:30:50]} {[%emt 00:00:13]} Nf6 {[%clk
01:31:27]} {[%emt 00:00:14]} 4. Nc3 {[%clk 01:31:12]} {[%emt 00:00:08]} a6
{[%clk 01:30:29]} {[%emt 00:01:30]} 5. c5 {[%clk 01:26:30]} {[%emt 00:05:11]}
Nc6 {[%clk 01:27:26]} {[%emt 00:03:34]} 6. Bf4 {[%clk 01:21:07]} {[%emt
00:05:52]} Ne4 {[%clk 01:22:00]} {[%emt 00:05:57]} 7. Qc1 {[%clk 01:01:18]}
{[%emt 00:20:18]} Be7 {[%clk 01:17:02]} {[%emt 00:05:30]} 8. h4 {[%clk
01:00:40]} {[%emt 00:01:07]} f5 {[%clk 01:13:04]} {[%emt 00:04:27]} 9. e3
{[%clk 00:59:09]} {[%emt 00:02:01]} Bf6 {[%clk 01:09:44]} {[%emt 00:03:49]} 10.
Be2 {[%clk 00:57:10]} {[%emt 00:02:29]} O-O {[%clk 01:04:50]} {[%emt 00:05:26]}
11. Bd1 {[%clk 00:54:34]} {[%emt 00:03:06]} Bd7 {[%clk 01:00:46]} {[%emt
00:04:34]} 12. Kf1 {[%clk 00:50:22]} {[%emt 00:04:41]} b6 {[%clk 00:52:15]}
{[%emt 00:09:00]} 13. Na4 {[%clk 00:50:08]} {[%emt 00:00:44]} Nb4 {[%clk
00:38:50]} {[%emt 00:13:55]} 14. cxb6 {[%clk 00:38:28]} {[%emt 00:12:11]} cxb6
{[%clk 00:38:19]} {[%emt 00:01:01]} 15. Qc7 {[%clk 00:38:40]} {[%emt 00:00:18]}
Bb5+ {[%clk 00:32:59]} {[%emt 00:05:49]} 16. Kg1 {[%clk 00:38:57]} {[%emt
00:00:13]} Qxc7 {[%clk 00:23:03]} {[%emt 00:10:28]} 17. Bxc7 {[%clk 00:39:25]}
{[%emt 00:00:01]} Bxa4 {[%clk 00:21:57]} {[%emt 00:01:36]} 18. Bxa4 {[%clk
00:39:54]} {[%emt 00:00:01]} b5 {[%clk 00:22:11]} {[%emt 00:00:16]} 19. Bb3
{[%clk 00:38:10]} {[%emt 00:02:13]} Nd3 {[%clk 00:21:58]} {[%emt 00:00:43]} 20.
g3 {[%clk 00:38:05]} {[%emt 00:00:35]} Rfc8 {[%clk 00:21:14]} {[%emt 00:01:13]}
21. Bf4 {[%clk 00:38:03]} {[%emt 00:00:33]} a5 {[%clk 00:17:59]} {[%emt
00:03:46]} 22. a4 {[%clk 00:37:37]} {[%emt 00:00:56]} b4 {[%clk 00:17:01]}
{[%emt 00:01:27]} 23. Rb1 {[%clk 00:37:35]} {[%emt 00:00:33]} Rc6 {[%clk
00:13:53]} {[%emt 00:03:37]} 24. Kg2 {[%clk 00:37:17]} {[%emt 00:00:49]} Nexf2
{[%clk 00:12:21]} {[%emt 00:02:02]} 25. Rhf1 {[%clk 00:37:23]} {[%emt
00:00:22]} Ng4 {[%clk 00:10:39]} {[%emt 00:02:13]} 26. Kg1 {[%clk 00:32:23]}
{[%emt 00:05:29]} Rac8 {[%clk 00:09:43]} {[%emt 00:01:28]} 27. Bd1 {[%clk
00:32:52]} {[%emt 00:00:01]} Nxf4 {[%clk 00:03:58]} {[%emt 00:06:14]} 28. exf4
{[%clk 00:33:20]} {[%emt 00:00:03]} Ne3 {[%clk 00:03:33]} {[%emt 00:00:55]} 29.
Re1 {[%clk 00:33:45]} {[%emt 00:00:05]} Rc1 {[%clk 00:01:49]} {[%emt 00:02:14]}
30. Bb3 {[%clk 00:33:17]} {[%emt 00:00:58]} Rxb1 {[%clk 00:01:57]} {[%emt
00:00:22]} 31. Rxb1 {[%clk 00:33:46]} {[%emt 00:00:02]} Kf7 {[%clk 00:01:35]}
{[%emt 00:00:51]} 32. Kf2 {[%clk 00:34:01]} {[%emt 00:00:15]} Nc4 {[%clk
00:01:46]} {[%emt 00:00:18]} 33. Rc1 {[%clk 00:34:23]} {[%emt 00:00:09]} Nd6
{[%clk 00:01:25]} {[%emt 00:00:52]} 34. Rxc8 {[%clk 00:33:52]} {[%emt
00:00:59]} Nxc8 {[%clk 00:01:53]} {[%emt 00:00:02]} 35. Ke3 {[%clk 00:34:08]}
{[%emt 00:00:13]} Nd6 {[%clk 00:01:28]} {[%emt 00:00:57]} 36. Nd2 {[%clk
00:31:43]} {[%emt 00:02:54]} g6 {[%clk 00:01:23]} {[%emt 00:00:36]} 37. Bd1
{[%clk 00:31:38]} {[%emt 00:00:34]} h6 {[%clk 00:01:18]} {[%emt 00:00:35]} 38.
b3 {[%clk 00:15:48]} {[%emt 00:16:21]} g5 {[%clk 00:01:02]} {[%emt 00:00:46]}
39. hxg5 {[%clk 00:06:25]} {[%emt 00:09:52]} hxg5 {[%clk 00:01:30]} {[%emt
00:00:03]} 40. Be2 {[%clk 00:04:49]} {[%emt 00:02:05]} g4 {[%clk 00:00:43]}
{[%emt 00:01:19]} 41. Ba6 {[%clk 00:25:21]} {[%emt 00:09:56]} Ke7 {[%clk
00:30:57]} {[%emt 00:00:16]} 42. Kd3 {[%clk 00:23:59]} {[%emt 00:01:53]} Kd7
{[%clk 00:25:14]} {[%emt 00:06:12]} 43. Ke3 {[%clk 00:20:26]} {[%emt 00:04:04]}
Kc6 {[%clk 00:24:35]} {[%emt 00:01:08]} 44. Be2 {[%clk 00:17:58]} {[%emt
00:02:57]} Bd8 {[%clk 00:22:47]} {[%emt 00:02:19]} 45. Ba6 {[%clk 00:17:30]}
{[%emt 00:00:58]} Bb6 {[%clk 00:22:10]} {[%emt 00:01:08]} 46. Kd3 {[%clk
00:15:11]} {[%emt 00:02:49]} Kc7 {[%clk 00:19:58]} {[%emt 00:02:42]} 47. Ke3
{[%clk 00:15:21]} {[%emt 00:00:20]} Ba7 {[%clk 00:16:46]} {[%emt 00:03:42]} 48.
Be2 {[%clk 00:15:29]} {[%emt 00:00:22]} Nc8 {[%clk 00:13:49]} {[%emt 00:03:27]}
49. Bb5 {[%clk 00:13:48]} {[%emt 00:02:12]} Bb6 {[%clk 00:13:53]} {[%emt
00:00:25]} 50. Kd3 {[%clk 00:07:59]} {[%emt 00:06:18]} Na7 {[%clk 00:13:38]}
{[%emt 00:00:45]} 51. Nf1 {[%clk 00:07:27]} {[%emt 00:01:03]} Nxb5 {[%clk
00:11:39]} {[%emt 00:02:29]} 52. axb5 {[%clk 00:07:55]} {[%emt 00:00:01]} Ba7
{[%clk 00:11:18]} {[%emt 00:00:52]} 53. Ne3 {[%clk 00:08:22]} {[%emt 00:00:03]}
Kb6 {[%clk 00:10:27]} {[%emt 00:01:20]} 54. Nd1 {[%clk 00:08:51]} {[%emt
00:00:01]} a4 {[%clk 00:08:39]} {[%emt 00:02:20]} 55. bxa4 {[%clk 00:06:37]}
{[%emt 00:02:44]} Ka5 {[%clk 00:09:08]} 56. Nb2 {[%clk 00:04:50]} {[%emt
00:02:16]} Bb6 {[%clk 00:09:33]} {[%emt 00:00:06]} 57. Kc2 {[%clk 00:03:44]}
{[%emt 00:01:36]} Bxd4 {[%clk 00:09:58]} {[%emt 00:00:04]} 58. Kb3 {[%clk
00:03:52]} {[%emt 00:00:21]} Bf2 {[%clk 00:09:58]} {[%emt 00:00:29]} 59. Nc4+
{[%clk 00:01:11]} {[%emt 00:03:13]} dxc4+ {[%clk 00:10:21]} {[%emt 00:00:05]}
0-1

[Event "Schack-SM 2024: Mastarklassen-elit"]
[Site "Fortnox Arena, Hejaregatan 5, Vaxjo, Sweden"]
[Date "2024.07.01"]
[Round "3.2"]
[White "Wiedenkeller, Michael"]
[Black "Sorensen, Hampus"]
[Result "1/2-1/2"]
[TimeControl "90 minutes for 40 moves + 30 minutes for the rest of the game + 30 seconds per move from move one."]
[WhiteTitle "IM"]
[BlackTitle "IM"]
[WhiteElo "2417"]
[BlackElo "2404"]

1. d4 {[%clk 01:30:52]} {[%emt 00:00:01]} d5 {[%clk 01:30:49]} {[%emt
00:00:12]} 2. c4 {[%clk 01:31:03]} {[%emt 00:00:20]} e6 {[%clk 01:31:12]}
{[%emt 00:00:05]} 3. Nf3 {[%clk 01:31:00]} {[%emt 00:00:33]} Nf6 {[%clk
01:31:31]} {[%emt 00:00:12]} 4. g3 {[%clk 01:31:10]} {[%emt 00:00:20]} dxc4
{[%clk 01:31:33]} {[%emt 00:00:28]} 5. Bg2 {[%clk 01:30:49]} {[%emt 00:00:50]}
a6 {[%clk 01:31:55]} {[%emt 00:00:10]} 6. O-O {[%clk 01:26:27]} {[%emt
00:04:51]} Nc6 {[%clk 01:32:06]} {[%emt 00:00:20]} 7. e3 {[%clk 01:24:08]}
{[%emt 00:02:49]} Rb8 {[%clk 01:32:19]} {[%emt 00:00:16]} 8. Nfd2 {[%clk
01:20:24]} {[%emt 00:04:13]} e5 {[%clk 01:32:26]} {[%emt 00:00:24]} 9. Bxc6+
{[%clk 01:17:13]} {[%emt 00:03:42]} bxc6 {[%clk 01:32:07]} {[%emt 00:00:48]} 10.
dxe5 {[%clk 01:17:17]} {[%emt 00:00:27]} Ng4 {[%clk 01:32:28]} {[%emt
00:00:07]} 11. Nxc4 {[%clk 01:14:25]} {[%emt 00:03:23]} Be6 {[%clk 01:32:46]}
{[%emt 00:00:12]} 12. Qxd8+ {[%clk 00:55:05]} {[%emt 00:19:50]} Rxd8 {[%clk
01:32:52]} {[%emt 00:00:24]} 13. Nbd2 {[%clk 00:47:38]} {[%emt 00:07:57]} Bb4
{[%clk 01:27:28]} {[%emt 00:05:53]} 14. b3 {[%clk 00:45:35]} {[%emt 00:02:34]}
Bc3 {[%clk 00:53:02]} {[%emt 00:34:56]} 15. Rb1 {[%clk 00:43:45]} {[%emt
00:02:20]} Bxd2 {[%clk 00:49:34]} {[%emt 00:03:58]} 16. Nxd2 {[%clk 00:43:43]}
{[%emt 00:00:31]} Nxe5 {[%clk 00:49:56]} {[%emt 00:00:09]} 17. Bb2 {[%clk
00:39:03]} {[%emt 00:05:09]} Rxd2 {[%clk 00:48:33]} {[%emt 00:01:53]} 18. Bxe5
{[%clk 00:38:10]} {[%emt 00:01:23]} O-O {[%clk 00:46:30]} {[%emt 00:02:34]} 19.
Bxc7 {[%clk 00:30:17]} {[%emt 00:08:24]} Rxa2 {[%clk 00:44:50]} {[%emt
00:02:09]} 20. b4 {[%clk 00:30:04]} {[%emt 00:00:43]} Rc8 {[%clk 00:43:16]}
{[%emt 00:02:04]} 21. Bb6 {[%clk 00:30:06]} {[%emt 00:00:29]} 1/2-1/2